fUSD/lending_fUSD_20260614
["ID","MTS","AMOUNT","RATE_DAILY","PERIOD"]
[425065830,1781447596000,-559.03324019,0.00033698,8]
[425065841,1781447596000,-2017.7968,0.00033698,8]
[425065861,1781447596000,-1083.06006526,0.00033698,8]
[425065813,1781447596000,-1539.64933258,0.00033698,8]
[425065817,1781447596000,-743.11718324,0.00033698,8]
[425065814,1781447596000,-870.59984145,0.00033698,8]
[425065815,1781447596000,-692.98109652,0.00033698,8]
[425065819,1781447596000,-553.52817101,0.00033698,8]
[425065829,1781447596000,-1169.20390883,0.00033698,8]
[425065827,1781447596000,-1701.44338935,0.00033698,8]
[425065818,1781447596000,-1661.51665406,0.00033698,8]
[425065822,1781447596000,-662.99042,0.00033698,8]
[425065820,1781447596000,-920.44786962,0.00033698,8]
[425065824,1781447596000,-698.14216416,0.00033698,8]
[425065823,1781447596000,-605.62317736,0.00033698,8]
[425065821,1781447596000,-509.87314932,0.00033698,8]
[425065826,1781447596000,-674.66139199,0.00033698,8]
[425065828,1781447596000,-592.59350212,0.00033698,8]
[425065825,1781447596000,-2667.89513345,0.00033698,8]
[425065832,1781447596000,-720.78719633,0.00033698,8]
[425065834,1781447596000,-502.03805296,0.00033698,8]
[425065839,1781447596000,-580.59725226,0.00033698,8]
[425065833,1781447596000,-702.0775,0.00033698,8]
[425065842,1781447596000,-550.92603671,0.00033698,8]
[425065871,1781447596000,-1682.59955116,0.00033698,8]
[425065816,1781447596000,-540.43687164,0.00033698,8]
[425065863,1781447596000,-4182.71854764,0.00033698,8]
[425065891,1781447596000,-2026.68678239,0.00033698,8]
[425065890,1781447596000,-505.18135086,0.00033698,8]
[425065887,1781447596000,-374.46023427,0.00033698,8]
[425065888,1781447596000,-25282.97,0.00033698,8]
[425065894,1781447596000,-557.50035758,0.00033698,8]
[425065895,1781447596000,-2890.71804824,0.00033698,8]
[425065897,1781447596000,-1828.25379052,0.00033698,8]
[425065896,1781447596000,-1801.39579532,0.00033698,8]
[425065898,1781447596000,-1343.69069789,0.00033698,8]
[425065904,1781447596000,-1413.26601663,0.00033698,8]
[425065899,1781447596000,-1463.26591277,0.00033698,8]
[425065902,1781447596000,-1866.85968766,0.00033698,8]
[425065903,1781447596000,-577.99,0.00033698,8]
[425065901,1781447596000,-595.45499888,0.00033698,8]
[425065905,1781447596000,-5973.24372679,0.00033698,8]
[425065907,1781447596000,-1091.06934253,0.00033698,8]
[425065908,1781447596000,-3655.23965518,0.00033698,8]
[425065906,1781447596000,-763.58672529,0.00033698,8]
[425065909,1781447596000,-3216.31668693,0.00033698,8]
[425065910,1781447596000,-2563.02610891,0.00033698,8]
[425065860,1781447596000,-704.86648407,0.00033698,8]
[425065893,1781447596000,-1296.75910729,0.00033698,8]
[425065885,1781447596000,-11664.13077567,0.00033698,8]
[425065900,1781447596000,-1214.1713079,0.00033698,8]
[425065889,1781447596000,-677.90731143,0.00033698,8]
[425065892,1781447596000,-589.25890411,0.00033698,8]
[425065870,1781447596000,-658.95517373,0.00033698,8]
[425065862,1781447596000,-702.17351294,0.00033698,8]
[425065866,1781447596000,-528.99640415,0.00033698,8]
[425065865,1781447596000,-2931.84741092,0.00033698,8]
[425065864,1781447596000,-3027.07064402,0.00033698,8]
[425065868,1781447596000,-742.67542652,0.00033698,8]
[425065869,1781447596000,-518.92983341,0.00033698,8]
[425065872,1781447596000,-1282.45437426,0.00033698,8]
[425065874,1781447596000,-528.87973734,0.00033698,8]
[425065875,1781447596000,-540.32724229,0.00033698,8]
[425065867,1781447596000,-3706.29534498,0.00033698,8]
[425065877,1781447596000,-1109.24594536,0.00033698,8]
[425065883,1781447596000,-1023.80254276,0.00033698,8]
[425065880,1781447596000,-1000.0,0.00033698,8]
[425065886,1781447596000,-563.60931737,0.00033698,8]
[425065884,1781447596000,-1278.46863643,0.00033698,8]
[425065878,1781447596000,-4001.60269092,0.00033698,8]
[425065882,1781447596000,-508.41243049,0.00033698,8]
[425065876,1781447596000,-636.89798664,0.00033698,8]
[425065881,1781447596000,-1407.50237729,0.00033698,8]
[425065879,1781447596000,-1749.78784974,0.00033698,8]
[425065873,1781447596000,-610.9,0.00033698,8]
[425065952,1781447597000,-150.337309,0.00033731,2]
[425065953,1781447597000,-656.48310526,0.00033782,7]
[425065951,1781447597000,-214.55542187,0.00033713,14]
[425065950,1781447597000,-346506.9224181,0.000337,7]
[425065954,1781447597000,-5013.88164987,0.00033797,2]
[425065947,1781447597000,-396.11185309,0.00033698,8]
[425065946,1781447597000,-5872.13,0.00033698,8]
[425065945,1781447597000,-1698.66056237,0.00033698,8]
[425065956,1781447597000,-150.0,0.00033815,2]
[425065944,1781447597000,-837.31915053,0.00033698,8]
[425065949,1781447597000,-150.0,0.00033698,2]
[425065940,1781447597000,-921.13275589,0.00033698,8]
[425065948,1781447597000,-1401.85355724,0.00033698,8]
[425065955,1781447597000,-150.0,0.00033815,2]
[425065967,1781447597000,-2106.44153089,0.0003389,20]
[425065959,1781447597000,-150.0,0.00033815,2]
[425065960,1781447597000,-151.967264,0.00033836,120]
[425065961,1781447597000,-2265.18731725,0.00033837,2]
[425065964,1781447597000,-185.09,0.00033878,2]
[425065958,1781447597000,-150.0,0.00033815,2]
[425065962,1781447597000,-1470.39,0.00033874,2]
[425065966,1781447597000,-573.39,0.00033884,2]
[425065968,1781447597000,-973.81506511,0.00033892,60]
[425065969,1781447597000,-319.0083834,0.00033892,60]
[425065963,1781447597000,-644.12,0.00033875,2]
[425065971,1781447597000,-794.16881028,0.000339,2]
[425065982,1781447597000,-250.0,0.0003395,2]
[425065933,1781447597000,-955.32850077,0.00033698,8]
[425065957,1781447597000,-150.0,0.00033815,2]
[425065937,1781447597000,-800.81826915,0.00033698,8]
[425065915,1781447597000,-1129.06945866,0.00033698,2]
[425065943,1781447597000,-741.59,0.00033698,8]
[425065917,1781447597000,-878.89059196,0.00033698,8]
[425065911,1781447597000,-1440.40831613,0.00033698,8]
[425065916,1781447597000,-1357.53258793,0.00033698,8]
[425065913,1781447597000,-605.74663047,0.00033698,8]
[425065912,1781447597000,-1108.21142329,0.00033698,8]
[425065914,1781447597000,-2020.78,0.00033698,8]
[425065981,1781447597000,-279.282285,0.0003394,7]
[425065918,1781447597000,-529.99350406,0.00033698,8]
[425065925,1781447597000,-1297.17213445,0.00033698,8]
[425065928,1781447597000,-1326.4033546,0.00033698,8]
[425065927,1781447597000,-1057.15381729,0.00033698,8]
[425065921,1781447597000,-900.47079571,0.00033698,8]
[425065919,1781447597000,-839.84402559,0.00033698,8]
[425065942,1781447597000,-1133.64076481,0.00033698,8]
[425065926,1781447597000,-650.11763383,0.00033698,8]
[425065929,1781447597000,-707.30168176,0.00033698,8]
[425065923,1781447597000,-12728.02632884,0.00033698,8]
[425065922,1781447597000,-822.95379907,0.00033698,8]
[425065924,1781447597000,-2061.36448368,0.00033698,8]
[425065930,1781447597000,-1599.96087378,0.00033698,8]
[425065931,1781447597000,-640.77110989,0.00033698,8]
[425065934,1781447597000,-1648.14943146,0.00033698,8]
[425065936,1781447597000,-577.42555006,0.00033698,8]
[425065932,1781447597000,-5289.33516681,0.00033698,8]
[425065939,1781447597000,-1610.00297008,0.00033698,8]
[425065941,1781447597000,-922.30261878,0.00033698,8]
[425065938,1781447597000,-2104.36606398,0.00033698,8]
[425065935,1781447597000,-861.6590118,0.00033698,8]
[425065920,1781447597000,-708.02854905,0.00033698,8]
[425065983,1781447597000,-250.0,0.0003395,2]
[425065965,1781447597000,-482.23,0.00033881,2]
[425065975,1781447597000,-512.97205329,0.000339,120]
[425066009,1781447597000,-284.0,0.00034032,30]
[425066018,1781447597000,-152.599759,0.00034188,120]
[425066016,1781447597000,-46430.16851454,0.00034177,4]
[425066011,1781447597000,-3189.0,0.00034032,30]
[425066013,1781447597000,-190.0,0.00034032,30]
[425066015,1781447597000,-212.82135112,0.0003417,14]
[425066017,1781447597000,-843.6,0.00034182,7]
[425066019,1781447597000,-150.0,0.0003419,2]
[425066012,1781447597000,-350.0,0.00034032,30]
[425066010,1781447597000,-689.0,0.00034032,30]
[425066014,1781447597000,-50360.40856378,0.000341,3]
[425066021,1781447597000,-1734.52,0.00034193,2]
[425066020,1781447597000,-1121.98,0.00034193,2]
[425066022,1781447597000,-195.38,0.00034197,120]
[425066023,1781447597000,-1922.0,0.00034197,2]
[425066027,1781447597000,-6124.34195992,0.00034234,3]
[425066024,1781447597000,-167.31544085,0.00034197,7]
[425066033,1781447597000,-397.95630562,0.00034269,2]
[425066026,1781447597000,-153.35034,0.00034211,120]
[425066029,1781447597000,-283.23614901,0.00034238,2]
[425066025,1781447597000,-901.56,0.00034209,4]
[425066034,1781447597000,-300.0,0.00034269,2]
[425066028,1781447597000,-154.100885,0.00034234,120]
[425066032,1781447597000,-1000.0,0.00034246,8]
[425066031,1781447597000,-2000.0,0.00034246,2]
[425066030,1781447597000,-500.0,0.00034246,120]
[425066035,1781447597000,-300.75552253,0.00034269,2]
[425065977,1781447597000,-265.31991817,0.000339,120]
[425066036,1781447597000,-300.73728429,0.00034269,2]
[425066001,1781447597000,-167.0,0.00034021,30]
[425066003,1781447597000,-503.0,0.00034028,30]
[425066037,1781447597000,-445.16888155,0.00034269,2]
[425066006,1781447597000,-154.0,0.00034028,30]
[425066002,1781447597000,-233.0,0.00034021,30]
[425065972,1781447597000,-196.85231838,0.000339,120]
[425065970,1781447597000,-1000.0,0.000339,21]
[425065980,1781447597000,-5972.39645795,0.0003392,2]
[425065976,1781447597000,-331.96218981,0.000339,120]
[425065973,1781447597000,-313.0,0.000339,120]
[425065979,1781447597000,-324.31386013,0.000339,120]
[425065974,1781447597000,-230.67590601,0.000339,120]
[425065984,1781447597000,-250.0,0.0003395,2]
[425065985,1781447597000,-250.0,0.0003395,2]
[425065986,1781447597000,-428.3146122,0.00033957,7]
[425065987,1781447597000,-500.0,0.00033972,120]
[425065995,1781447597000,-1500.0,0.00034,2]
[425065988,1781447597000,-2000.0,0.00033972,2]
[425065978,1781447597000,-463.01413087,0.000339,120]
[425065990,1781447597000,-1001.0,0.00033973,120]
[425065996,1781447597000,-1546.0,0.00034,2]
[425065999,1781447597000,-750.0,0.00034,2]
[425065997,1781447597000,-294.02,0.00034,30]
[425066004,1781447597000,-152.0,0.00034028,30]
[425066005,1781447597000,-410.0,0.00034028,30]
[425066007,1781447597000,-168.0,0.00034028,30]
[425066008,1781447597000,-324.0,0.00034028,30]
[425066000,1781447597000,-156.025258,0.00034012,120]
[425065993,1781447597000,-20366.35791891,0.00034,5]
[425065991,1781447597000,-264.99,0.00033978,7]
[425065992,1781447597000,-50000.0,0.00034,8]
[425065989,1781447597000,-1000.0,0.00033972,8]
[425065994,1781447597000,-10000.0,0.00034,20]
[425065998,1781447597000,-286.88325,0.00034,120]
[425066081,1781447598000,-310.4709758,0.00034269,2]
[425066073,1781447598000,-301.69836427,0.00034269,2]
[425066080,1781447598000,-300.0,0.00034269,2]
[425066076,1781447598000,-300.0,0.00034269,2]
[425066075,1781447598000,-300.99300233,0.00034269,2]
[425066084,1781447598000,-300.00000001,0.00034269,2]
[425066085,1781447598000,-595.83549493,0.00034269,2]
[425066074,1781447598000,-300.51822388,0.00034269,2]
[425066069,1781447598000,-300.0,0.00034269,2]
[425066066,1781447598000,-300.0,0.00034269,2]
[425066067,1781447598000,-300.0,0.00034269,2]
[425066086,1781447598000,-300.0,0.00034269,2]
[425066077,1781447598000,-300.84188308,0.00034269,2]
[425066089,1781447598000,-300.0,0.00034269,2]
[425066083,1781447598000,-300.0,0.00034269,2]
[425066082,1781447598000,-300.62517611,0.00034269,2]
[425066079,1781447598000,-300.63579044,0.00034269,2]
[425066087,1781447598000,-300.0,0.00034269,2]
[425066090,1781447598000,-583.4214993,0.00034269,2]
[425066092,1781447598000,-300.0,0.00034269,2]
[425066091,1781447598000,-453.53449126,0.00034269,2]
[425066098,1781447598000,-834.69076105,0.00034269,2]
[425066094,1781447598000,-300.0,0.00034269,2]
[425066088,1781447598000,-513.18457926,0.00034269,2]
[425066096,1781447598000,-300.0,0.00034269,2]
[425066093,1781447598000,-300.00000001,0.00034269,2]
[425066072,1781447598000,-302.01081119,0.00034269,2]
[425066099,1781447598000,-368.24208394,0.00034269,2]
[425066078,1781447598000,-345.24105342,0.00034269,2]
[425066070,1781447598000,-300.8737105,0.00034269,2]
[425066057,1781447598000,-300.00000001,0.00034269,2]
[425066062,1781447598000,-300.0,0.00034269,2]
[425066097,1781447598000,-300.0,0.00034269,2]
[425066039,1781447598000,-300.62522312,0.00034269,2]
[425066038,1781447598000,-300.64766691,0.00034269,2]
[425066044,1781447598000,-300.0,0.00034269,2]
[425066042,1781447598000,-300.73794651,0.00034269,2]
[425066046,1781447598000,-301.02532366,0.00034269,2]
[425066047,1781447598000,-300.70282071,0.00034269,2]
[425066041,1781447598000,-300.70947836,0.00034269,2]
[425066045,1781447598000,-491.98349177,0.00034269,2]
[425066040,1781447598000,-300.89329747,0.00034269,2]
[425066043,1781447598000,-300.68688309,0.00034269,2]
[425066048,1781447598000,-1804.32870853,0.00034269,2]
[425066056,1781447598000,-300.0,0.00034269,2]
[425066064,1781447598000,-300.0,0.00034269,2]
[425066049,1781447598000,-412.48161073,0.00034269,2]
[425066058,1781447598000,-300.70662256,0.00034269,2]
[425066050,1781447598000,-300.62517611,0.00034269,2]
[425066054,1781447598000,-463.2605742,0.00034269,2]
[425066052,1781447598000,-598.86138473,0.00034269,2]
[425066053,1781447598000,-513.18457926,0.00034269,2]
[425066059,1781447598000,-301.3879661,0.00034269,2]
[425066055,1781447598000,-300.62522312,0.00034269,2]
[425066061,1781447598000,-300.0,0.00034269,2]
[425066071,1781447598000,-300.0,0.00034269,2]
[425066068,1781447598000,-300.000001,0.00034269,2]
[425066063,1781447598000,-300.0,0.00034269,2]
[425066060,1781447598000,-300.0,0.00034269,2]
[425066065,1781447598000,-300.69902079,0.00034269,2]
[425066051,1781447598000,-300.64914143,0.00034269,2]
[425066095,1781447598000,-300.0,0.00034269,2]
[425066153,1781447598000,-495.04855072,0.00034269,2]
[425066111,1781447598000,-300.0,0.00034269,2]
[425066135,1781447598000,-301.09393947,0.00034269,2]
[425066136,1781447598000,-300.65337665,0.00034269,2]
[425066137,1781447598000,-583.4214993,0.00034269,2]
[425066146,1781447598000,-300.0,0.00034269,2]
[425066145,1781447598000,-834.9032276,0.00034269,2]
[425066139,1781447598000,-537.51890148,0.00034269,2]
[425066148,1781447598000,-1099.23393786,0.00034269,2]
[425066141,1781447598000,-300.0,0.00034269,2]
[425066138,1781447598000,-453.16786237,0.00034269,2]
[425066140,1781447598000,-300.0,0.00034269,2]
[425066147,1781447598000,-300.0,0.00034269,2]
[425066144,1781447598000,-300.0,0.00034269,2]
[425066142,1781447598000,-300.0,0.00034269,2]
[425066134,1781447598000,-1345.93432611,0.00034269,2]
[425066143,1781447598000,-300.0,0.00034269,2]
[425066149,1781447598000,-300.0,0.00034269,2]
[425066151,1781447598000,-300.0,0.00034269,2]
[425066160,1781447598000,-300.77966013,0.00034269,2]
[425066155,1781447598000,-300.00000001,0.00034269,2]
[425066157,1781447598000,-300.0,0.00034269,2]
[425066158,1781447598000,-538.31744909,0.00034269,2]
[425066156,1781447598000,-300.00000001,0.00034269,2]
[425066161,1781447598000,-302.92480273,0.00034269,2]
[425066152,1781447598000,-300.00000001,0.00034269,2]
[425066101,1781447598000,-1104.17002937,0.00034269,2]
[425066159,1781447598000,-300.0,0.00034269,2]
[425066162,1781447598000,-430.1182761,0.00034269,2]
[425066163,1781447598000,-303.2577767,0.00034269,2]
[425066150,1781447598000,-300.0,0.00034269,2]
[425066133,1781447598000,-300.0,0.00034269,2]
[425066154,1781447598000,-300.88467188,0.00034269,2]
[425066128,1781447598000,-300.0,0.00034269,2]
[425066132,1781447598000,-300.0,0.00034269,2]
[425066112,1781447598000,-300.0,0.00034269,2]
[425066110,1781447598000,-300.22335353,0.00034269,2]
[425066102,1781447598000,-300.0,0.00034269,2]
[425066109,1781447598000,-300.00000001,0.00034269,2]
[425066108,1781447598000,-300.0,0.00034269,2]
[425066104,1781447598000,-300.0,0.00034269,2]
[425066105,1781447598000,-300.69902079,0.00034269,2]
[425066103,1781447598000,-300.0,0.00034269,2]
[425066106,1781447598000,-300.0,0.00034269,2]
[425066107,1781447598000,-300.0,0.00034269,2]
[425066113,1781447598000,-300.72070946,0.00034269,2]
[425066118,1781447598000,-301.69836427,0.00034269,2]
[425066115,1781447598000,-314.70059436,0.00034269,2]
[425066100,1781447598000,-300.0,0.00034269,2]
[425066119,1781447598000,-300.0,0.00034269,2]
[425066114,1781447598000,-300.0,0.00034269,2]
[425066129,1781447598000,-1802.86814567,0.00034269,2]
[425066126,1781447598000,-345.24105342,0.00034269,2]
[425066127,1781447598000,-528.79294623,0.00034269,2]
[425066122,1781447598000,-300.0,0.00034269,2]
[425066117,1781447598000,-300.67053399,0.00034269,2]
[425066130,1781447598000,-300.0,0.00034269,2]
[425066125,1781447598000,-300.0,0.00034269,2]
[425066116,1781447598000,-300.0,0.00034269,2]
[425066124,1781447598000,-547.61181394,0.00034269,2]
[425066120,1781447598000,-300.0,0.00034269,2]
[425066131,1781447598000,-300.59175626,0.00034269,2]
[425066123,1781447598000,-300.0,0.00034269,2]
[425066121,1781447598000,-300.0,0.00034269,2]
[425066205,1781447599000,-300.0,0.00034269,2]
[425066190,1781447599000,-496.6529862,0.00034269,2]
[425066191,1781447599000,-300.1876032,0.00034269,2]
[425066194,1781447599000,-300.0,0.00034269,2]
[425066195,1781447599000,-535.92916089,0.00034269,2]
[425066193,1781447599000,-300.0,0.00034269,2]
[425066196,1781447599000,-300.30900916,0.00034269,2]
[425066203,1781447599000,-300.0,0.00034269,2]
[425066201,1781447599000,-528.13752622,0.00034269,2]
[425066204,1781447599000,-300.0,0.00034269,2]
[425066188,1781447599000,-300.0,0.00034269,2]
[425066192,1781447599000,-300.0,0.00034269,2]
[425066211,1781447599000,-300.0,0.00034269,2]
[425066202,1781447599000,-300.68894095,0.00034269,2]
[425066207,1781447599000,-1099.23393787,0.00034269,2]
[425066213,1781447599000,-496.6529862,0.00034269,2]
[425066208,1781447599000,-300.0,0.00034269,2]
[425066212,1781447599000,-300.0,0.00034269,2]
[425066214,1781447599000,-367.75059795,0.00034269,2]
[425066209,1781447599000,-300.0,0.00034269,2]
[425066216,1781447599000,-300.0,0.00034269,2]
[425066226,1781447599000,-300.0,0.00034269,2]
[425066199,1781447599000,-300.0,0.00034269,2]
[425066227,1781447599000,-300.00000001,0.00034269,2]
[425066206,1781447599000,-300.0,0.00034269,2]
[425066200,1781447599000,-344.67063134,0.00034269,2]
[425066175,1781447599000,-300.63324254,0.00034269,2]
[425066197,1781447599000,-300.0,0.00034269,2]
[425066215,1781447599000,-301.27070902,0.00034269,2]
[425066174,1781447599000,-300.0,0.00034269,2]
[425066173,1781447599000,-300.0,0.00034269,2]
[425066164,1781447599000,-300.30348763,0.00034269,2]
[425066168,1781447599000,-572.54300191,0.00034269,2]
[425066171,1781447599000,-300.0,0.00034269,2]
[425066167,1781447599000,-338.67708353,0.00034269,2]
[425066165,1781447599000,-302.55422935,0.00034269,2]
[425066166,1781447599000,-300.0,0.00034269,2]
[425066170,1781447599000,-300.0,0.00034269,2]
[425066169,1781447599000,-300.0,0.00034269,2]
[425066172,1781447599000,-528.79294623,0.00034269,2]
[425066179,1781447599000,-300.0,0.00034269,2]
[425066177,1781447599000,-300.95879029,0.00034269,2]
[425066185,1781447599000,-1099.23393786,0.00034269,2]
[425066183,1781447599000,-300.0,0.00034269,2]
[425066182,1781447599000,-300.0,0.00034269,2]
[425066184,1781447599000,-833.25785049,0.00034269,2]
[425066178,1781447599000,-300.0,0.00034269,2]
[425066181,1781447599000,-300.0,0.00034269,2]
[425066180,1781447599000,-300.0,0.00034269,2]
[425066176,1781447599000,-1352.3075489,0.00034269,2]
[425066187,1781447599000,-300.0,0.00034269,2]
[425066186,1781447599000,-300.0,0.00034269,2]
[425066189,1781447599000,-300.86558272,0.00034269,2]
[425066198,1781447599000,-302.92480273,0.00034269,2]
[425066219,1781447599000,-303.78359049,0.00034269,2]
[425066210,1781447599000,-300.0,0.00034269,2]
[425066222,1781447599000,-952.73930801,0.00034269,2]
[425066251,1781447599000,-300.0,0.00034269,2]
[425066249,1781447599000,-729.03553261,0.00034269,2]
[425066245,1781447599000,-300.0,0.00034269,2]
[425066250,1781447599000,-300.0,0.00034269,2]
[425066246,1781447599000,-300.00000001,0.00034269,2]
[425066257,1781447599000,-583.31338981,0.00034269,2]
[425066256,1781447599000,-514.76407518,0.00034269,2]
[425066266,1781447599000,-300.0,0.00034269,2]
[425066255,1781447599000,-300.0,0.00034269,2]
[425066261,1781447599000,-300.0,0.00034269,2]
[425066258,1781447599000,-387.0157792,0.00034269,2]
[425066267,1781447599000,-300.00000001,0.00034269,2]
[425066265,1781447599000,-300.00000001,0.00034269,2]
[425066260,1781447599000,-300.0,0.00034269,2]
[425066263,1781447599000,-300.0,0.00034269,2]
[425066264,1781447599000,-300.0,0.00034269,2]
[425066262,1781447599000,-300.0,0.00034269,2]
[425066268,1781447599000,-300.0,0.00034269,2]
[425066270,1781447599000,-300.0,0.00034269,2]
[425066269,1781447599000,-300.0,0.00034269,2]
[425066271,1781447599000,-300.0,0.00034269,2]
[425066272,1781447599000,-300.00000001,0.00034269,2]
[425066275,1781447599000,-300.0,0.00034269,2]
[425066273,1781447599000,-300.0,0.00034269,2]
[425066223,1781447599000,-442.23048591,0.00034269,2]
[425066247,1781447599000,-300.0,0.00034269,2]
[425066248,1781447599000,-300.0,0.00034269,2]
[425066259,1781447599000,-300.0,0.00034269,2]
[425066253,1781447599000,-300.0,0.00034269,2]
[425066243,1781447599000,-621.86920631,0.00034269,2]
[425066218,1781447599000,-300.00000001,0.00034269,2]
[425066221,1781447599000,-867.7847165,0.00034269,2]
[425066217,1781447599000,-535.9291609,0.00034269,2]
[425066274,1781447599000,-300.0,0.00034269,2]
[425066220,1781447599000,-300.0,0.00034269,2]
[425066225,1781447599000,-300.64807553,0.00034269,2]
[425066224,1781447599000,-300.76979962,0.00034269,2]
[425066239,1781447599000,-586.18973329,0.00034269,2]
[425066240,1781447599000,-475.02893316,0.00034269,2]
[425066230,1781447599000,-657.31839972,0.00034269,2]
[425066228,1781447599000,-300.0,0.00034269,2]
[425066236,1781447599000,-300.72636472,0.00034269,2]
[425066229,1781447599000,-300.0,0.00034269,2]
[425066238,1781447599000,-300.0,0.00034269,2]
[425066252,1781447599000,-300.0,0.00034269,2]
[425066254,1781447599000,-300.68556002,0.00034269,2]
[425066241,1781447599000,-300.0,0.00034269,2]
[425066244,1781447599000,-1297.23064654,0.00034269,2]
[425066233,1781447599000,-300.0,0.00034269,2]
[425066242,1781447599000,-300.0,0.00034269,2]
[425066237,1781447599000,-729.03553261,0.00034269,2]
[425066231,1781447599000,-300.71303426,0.00034269,2]
[425066232,1781447599000,-729.03553261,0.00034269,2]
[425066235,1781447599000,-951.96948477,0.00034269,2]
[425066234,1781447599000,-867.7847165,0.00034269,2]
[425066312,1781447600000,-300.0,0.00034269,2]
[425066317,1781447600000,-300.0,0.00034269,2]
[425066313,1781447600000,-300.0,0.00034269,2]
[425066311,1781447600000,-300.00000001,0.00034269,2]
[425066314,1781447600000,-300.0,0.00034269,2]
[425066320,1781447600000,-300.0,0.00034269,2]
[425066309,1781447600000,-300.0,0.00034269,2]
[425066310,1781447600000,-300.0,0.00034269,2]
[425066305,1781447600000,-300.0,0.00034269,2]
[425066306,1781447600000,-300.00000001,0.00034269,2]
[425066315,1781447600000,-300.0,0.00034269,2]
[425066321,1781447600000,-300.0,0.00034269,2]
[425066316,1781447600000,-300.0,0.00034269,2]
[425066328,1781447600000,-300.0,0.00034269,2]
[425066319,1781447600000,-300.6813102,0.00034269,2]
[425066322,1781447600000,-729.03553261,0.00034269,2]
[425066327,1781447600000,-300.67053398,0.00034269,2]
[425066334,1781447600000,-1160.22255082,0.00034269,2]
[425066333,1781447600000,-300.0,0.00034269,2]
[425066331,1781447600000,-528.86443899,0.00034269,2]
[425066324,1781447600000,-302.88430132,0.00034269,2]
[425066325,1781447600000,-300.0,0.00034269,2]
[425066323,1781447600000,-300.0,0.00034269,2]
[425066326,1781447600000,-300.0,0.00034269,2]
[425066332,1781447600000,-300.0,0.00034269,2]
[425066330,1781447600000,-345.19340302,0.00034269,2]
[425066304,1781447600000,-300.0,0.00034269,2]
[425066318,1781447600000,-609.43974635,0.00034269,2]
[425066303,1781447600000,-300.0,0.00034269,2]
[425066276,1781447600000,-729.03553261,0.00034269,2]
[425066302,1781447600000,-300.0,0.00034269,2]
[425066277,1781447600000,-302.88430132,0.00034269,2]
[425066336,1781447600000,-1804.32870853,0.00034269,2]
[425066280,1781447600000,-345.19340304,0.00034269,2]
[425066281,1781447600000,-300.90757316,0.00034269,2]
[425066278,1781447600000,-300.0,0.00034269,2]
[425066285,1781447600000,-300.0,0.00034269,2]
[425066279,1781447600000,-300.0,0.00034269,2]
[425066282,1781447600000,-1160.22255082,0.00034269,2]
[425066283,1781447600000,-1804.32870853,0.00034269,2]
[425066284,1781447600000,-300.0,0.00034269,2]
[425066287,1781447600000,-300.0,0.00034269,2]
[425066286,1781447600000,-310.72237796,0.00034269,2]
[425066291,1781447600000,-300.0,0.00034269,2]
[425066297,1781447600000,-300.0,0.00034269,2]
[425066288,1781447600000,-300.0,0.00034269,2]
[425066289,1781447600000,-1345.93432611,0.00034269,2]
[425066290,1781447600000,-300.0,0.00034269,2]
[425066292,1781447600000,-300.0,0.00034269,2]
[425066293,1781447600000,-513.11884605,0.00034269,2]
[425066296,1781447600000,-300.0,0.00034269,2]
[425066295,1781447600000,-583.31338981,0.00034269,2]
[425066294,1781447600000,-300.0,0.00034269,2]
[425066299,1781447600000,-300.0,0.00034269,2]
[425066307,1781447600000,-300.0,0.00034269,2]
[425066308,1781447600000,-300.00000001,0.00034269,2]
[425066298,1781447600000,-300.0,0.00034269,2]
[425066300,1781447600000,-300.0,0.00034269,2]
[425066301,1781447600000,-445.4173373,0.00034269,2]
[425066346,1781447600000,-300.0,0.00034269,2]